[Event "Djerba Festival Open-B 2025"]
[Site "Djerba"]
[Date "2025.02.21"]
[Round "7.23"]
[White "Falezan, Arnaud"]
[Black "Boudnani, Brahim"]
[Result "0-1"]
[Annotator "NA RC"]
[ECO "B07"]
[WhiteElo "1662"]
[BlackElo "1721"]
[PlyCount "122"]
[EventDate "2025.02.15"]
[EventType "swiss"]
[EventCountry "TUN"]
[SourceTitle "playchess.com"]
[Source "ChessBase"]
[SourceQuality "1"]
[TimeControl "5400+30"]

1. e4 {[%emt 0:00:03]} d6 {[%emt 0:00:09]} 2. d4 {[%emt 0:00:13]} Nd7 {[%emt 0:00:18]} 3. Nc3 {[%emt 0:00:46]} Ngf6 {[%emt 0:00:07]} 4. f4 {[%emt 0:00:26]} Nb6 {[%emt 0:03:59]} 5. a4 {[%emt 0:01:30]} Bg4 {[%emt 0:02:37]} 6. Nf3 {[%emt 0:00:48]} a5 {[%emt 0:00:32]} 7. h3 {[%emt 0:02:26]} Bd7 {[%emt 0:01:20]} 8. e5 {[%emt 0:03:35]} Nh5 {[%emt 0:01:34]} 9. Ne2 {[%emt 0:08:04]} Bc6 {[%emt 0:02:19]} 10. Qd3 {[%emt 0:04:56]} g6 {[%emt 0:01:36]} 11. g4 {[%emt 0:02:35]} Ng7 {[%emt 0:00:51]} 12. Nc3 {[%emt 0:09:12]} e6 {[%emt 0:00:21]} 13. Ne4 {[%emt 0:04:57]} Be7 {[%emt 0:03:49]} 14. Be3 {[%emt 0:06:03]} Nd5 {[%emt 0:02:35]} 15. Bd2 {[%emt 0:07:47]} Nb4 {[%emt 0:02:37]} 16. Bxb4 {[%emt 0:02:16]} axb4 {[%emt 0:00:12]} 17. h4 {[%emt 0:08:04]} h5 {[%emt 0:01:39]} 18. g5 {[%emt 0:01:23]} Nf5 {[%emt 0:00:17]} 19. Bh3 {[%emt 0:01:29]} Bxe4 {[%emt 0:02:11]} 20. Qxe4 {[%emt 0:00:39]} Ng3 {[%emt 0:00:15]} 21. Qe3 {[%emt 0:02:00]} Nxh1 {[%emt 0:03:52]} 22. Qg1 {[%emt 0:00:41]} d5 {[%emt 0:00:24]} 23. Qxh1 {[%emt 0:01:38]} Qd7 {[%emt 0:00:51]} 24. a5 {[%emt 0:01:31]} c6 {[%emt 0:06:30]} 25. Qf1 {[%emt 0:04:53]} Qc7 {[%emt 0:00:30]} 26. a6 {[%emt 0:01:36]} Qb6 {[%emt 0:00:42]} 27. Qd3 {[%emt 0:01:36]} Rxa6 {[%emt 0:07:32]} 28. Rxa6 {[%emt 0:01:59]} Qxa6 {[%emt 0:01:19]} 29. Qxa6 {[%emt 0:01:33]} bxa6 {[%emt 0:00:13]} 30. Bf1 {[%emt 0:04:47]} a5 {[%emt 0:00:15]} 31. Kd2 {[%emt 0:04:29]} a4 {[%emt 0:00:44]} 32. Kc1 {[%emt 0:02:01]} Kd7 {[%emt 0:01:02]} 33. Kb1 {[%emt 0:02:11]} a3 {[%emt 0:01:33]} 34. Ne1 {[%emt 0:03:09]} Rb8 {[%emt 0:04:30]} 35. Nd3 {[%emt 0:00:43]} Kc7 {[%emt 0:03:10]} 36. Nc5 {[%emt 0:02:07]} Bxc5 {[%emt 0:00:29]} 37. dxc5 {[%emt 0:00:08]} Ra8 {[%emt 0:00:14]} 38. b3 {[%emt 0:03:35]} Ra5 {[%emt 0:00:19]} 39. Ka2 {[%emt 0:00:56]} Rxc5 {[%emt 0:00:14]} 40. Bd3 {[%emt 0:01:45]} Ra5 {[%emt 0:46:49]} 41. Kb1 {[%emt 0:00:00]} c5 {[%emt 0:00:00]} 42. Ka2 {[%emt 0:00:25]} Ra8 {[%emt 0:00:00]} 43. Bb5 {[%emt 0:00:24]} Rd8 {[%emt 0:00:00]} 44. Ba6 {[%emt 0:00:28]} d4 {[%emt 0:00:00]} 45. Bd3 {[%emt 0:00:34]} Kc6 {[%emt 0:00:00]} 46. Be4+ {[%emt 0:00:22]} Kb6 {[%emt 0:00:00]} 47. Bd3 {[%emt 0:00:08]} Kc7 {[%emt 0:00:00]} 48. Ka1 {[%emt 0:00:47]} Kb6 {[%emt 0:00:00]} 49. Ka2 {[%emt 0:00:06]} c4 {[%emt 0:00:00]} 50. bxc4 {[%emt 0:00:08]} Kc5 {[%emt 0:00:00]} 51. Kb3 {[%emt 0:01:18]} Ra8 {[%emt 0:00:00]} 52. Ka2 {[%emt 0:00:26]} b3+ {[%emt 0:00:00]} 53. cxb3 {[%emt 0:00:25]} Kb4 {[%emt 0:00:00]} 54. Be4 {[%emt 0:00:52]} Ra7 {[%emt 0:00:00]} 55. Kb1 {[%emt 0:00:36]} Kxb3 {[%emt 0:00:00]} 56. c5 {[%emt 0:00:20]} a2+ {[%emt 0:00:00]} 57. Ka1 {[%emt 0:00:13]} Kc3 {[%emt 0:00:00]} 58. c6 {[%emt 0:00:54]} d3 {[%emt 0:00:00]} 59. c7 {[%emt 0:00:15]} Rxc7 {[%emt 0:00:00]} 60. Kxa2 {[%emt 0:00:25]} d2 {[%emt 0:00:00]} 61. Bf3 {[%emt 0:00:52]} Kc2 {[%emt 0:00:00]} 0-1

[Event "Djerba Festival Open-B 2025"]
[Site "Djerba"]
[Date "2025.02.21"]
[Round "7.24"]
[White "Kempinski, Andre"]
[Black "Dauvois, Theo"]
[Result "1-0"]
[Annotator "NA RC"]
[ECO "B73"]
[WhiteElo "1888"]
[BlackElo "1663"]
[PlyCount "97"]
[EventDate "2025.02.15"]
[EventType "swiss"]
[EventCountry "TUN"]
[SourceTitle "playchess.com"]
[Source "ChessBase"]
[SourceQuality "1"]
[TimeControl "5400+30"]

1. e4 {[%emt 1:31:00]} c5 {[%emt 1:31:00]} 2. Nf3 {[%emt 0:00:30]} Nc6 {[%emt 0:00:30]} 3. d4 {[%emt 0:00:30]} cxd4 {[%emt 0:00:30]} 4. Nxd4 {[%emt 0:00:30]} g6 {[%emt 0:00:30]} 5. Nc3 {[%emt 0:00:30]} Bg7 {[%emt 0:00:30]} 6. Be3 {[%emt 0:00:30]} Nf6 {[%emt 0:00:30]} 7. Be2 {[%emt 0:00:30]} d6 {[%emt 0:00:30]} 8. O-O {[%emt 0:00:30]} O-O {[%emt 0:00:30]} 9. h3 {[%emt 0:00:30]} Bd7 {[%emt 0:00:30]} 10. Qd2 {[%emt 0:00:30]} Re8 {[%emt 0:00:30]} 11. f4 {[%emt 0:00:30]} a6 {[%emt 0:00:30]} 12. g4 {[%emt 0:00:30]} e5 {[%emt 0:00:30]} 13. fxe5 {[%emt 0:00:30]} dxe5 {[%emt 0:00:30]} 14. Nxc6 {[%emt 0:00:30]} Bxc6 {[%emt 0:00:30]} 15. Qxd8 {[%emt 0:00:30]} Raxd8 {[%emt 0:00:30]} 16. Bg5 {[%emt 0:00:30]} Rd6 {[%emt 0:00:30]} 17. Bd3 {[%emt 0:00:30]} h6 {[%emt 0:00:30]} 18. Bh4 {[%emt 0:00:30]} b5 {[%emt 0:00:30]} 19. a3 {[%emt 0:00:30]} Nd7 {[%emt 0:00:30]} 20. Rf3 {[%emt 0:00:30]} g5 {[%emt 0:00:30]} 21. Bg3 {[%emt 0:00:30]} Nc5 {[%emt 0:00:30]} 22. Raf1 {[%emt 0:00:30]} Re7 {[%emt 0:00:30]} 23. Kf2 {[%emt 0:00:30]} Ne6 {[%emt 0:00:30]} 24. Ke3 {[%emt 0:00:30]} Nf4 {[%emt 0:00:30]} 25. Bh2 {[%emt 0:00:30]} Bb7 {[%emt 0:00:30]} 26. Bg1 {[%emt 0:00:30]} Red7 {[%emt 0:00:30]} 27. Kd2 {[%emt 0:00:30]} Bf8 {[%emt 0:00:30]} 28. Rg3 {[%emt 0:00:30]} Rc6 {[%emt 0:00:30]} 29. Re1 {[%emt 0:00:30]} b4 {[%emt 0:00:30]} 30. Nb1 {[%emt 0:00:30]} b3 {[%emt 0:00:30]} 31. cxb3 {[%emt 0:00:30]} Rcd6 {[%emt 0:00:30]} 32. Ree3 {[%emt 0:00:30]} Bxe4 {[%emt 0:00:30]} 33. Rxe4 {[%emt 0:00:30]} Rxd3+ {[%emt 0:00:30]} 34. Rxd3 {[%emt 0:00:30]} Rxd3+ {[%emt 0:00:30]} 35. Kc2 {[%emt 0:00:30]} Rxh3 {[%emt 0:00:30]} 36. b4 {[%emt 0:00:30]} Rg3 {[%emt 0:00:30]} 37. Bc5 {[%emt 0:00:30]} Rxg4 {[%emt 0:00:30]} 38. Rxe5 {[%emt 0:00:30]} Rg2+ {[%emt 0:00:30]} 39. Kb3 {[%emt 0:00:30]} Rxb2+ {[%emt 0:00:30]} 40. Kxb2 {[%emt 0:00:30]} Nd3+ {[%emt 0:00:30]} 41. Kc3 {[%emt 0:00:30]} Nxe5 {[%emt 0:00:30]} 42. Kd4 {[%emt 0:00:30]} Nd7 {[%emt 0:00:30]} 43. Nd2 {[%emt 0:00:30]} f5 {[%emt 0:00:30]} 44. Kd5 {[%emt 0:00:30]} Nxc5 {[%emt 0:00:30]} 45. bxc5 {[%emt 0:00:30]} Kf7 {[%emt 0:00:30]} 46. c6 {[%emt 0:00:30]} Ke8 {[%emt 0:00:30]} 47. a4 {[%emt 0:00:30]} h5 {[%emt 0:00:30]} 48. Ke6 {[%emt 0:00:30]} f4 {[%emt 0:00:30]} 49. c7 {[%emt 0:00:30]} 1-0

[Event "Djerba Festival Open-B 2025"]
[Site "Djerba"]
[Date "2025.02.21"]
[Round "7.25"]
[White "Girard, Adrien"]
[Black "Dubourg, Bruno"]
[Result "1/2-1/2"]
[Annotator "NA"]
[ECO "B06"]
[WhiteElo "1796"]
[BlackElo "1661"]
[PlyCount "56"]
[EventDate "2025.02.15"]
[EventType "swiss"]
[EventCountry "TUN"]
[SourceTitle "playchess.com"]
[Source "ChessBase"]
[SourceQuality "1"]
[TimeControl "5400+30"]

1. e4 {[%emt 0:00:02]} d6 {[%emt 0:00:13]} 2. d4 {[%emt 0:00:07]} g6 {[%emt 0:00:06]} 3. Nc3 {[%emt 0:00:05]} Bg7 {[%emt 0:00:04]} 4. Be3 {[%emt 0:00:06]} Nd7 {[%emt 0:00:15]} 5. Qd2 {[%emt 0:00:12]} c6 {[%emt 0:00:58]} 6. O-O-O {[%emt 0:00:39]} e5 {[%emt 0:00:19]} 7. dxe5 {[%emt 0:00:24]} Nxe5 {[%emt 0:01:55]} 8. Qxd6 {[%emt 0:00:58]} Qxd6 {[%emt 0:00:13]} 9. Rxd6 {[%emt 0:00:07]} Ng4 {[%emt 0:01:18]} 10. Rd3 {[%emt 0:05:59]} Nxe3 {[%emt 0:00:31]} 11. fxe3 {[%emt 0:00:45]} Be6 {[%emt 0:03:02]} 12. Kb1 {[%emt 0:00:09]} Bc4 {[%emt 0:04:22]} 13. Rd1 {[%emt 0:00:59]} Bxf1 {[%emt 0:00:08]} 14. Rxf1 {[%emt 0:00:05]} Bxc3 {[%emt 0:00:07]} 15. bxc3 {[%emt 0:00:06]} Ke7 {[%emt 0:04:04]} 16. Nf3 {[%emt 0:00:12]} Nf6 {[%emt 0:00:31]} 17. Ng5 {[%emt 0:03:01]} Raf8 {[%emt 0:02:07]} 18. e5 {[%emt 0:05:40]} Nd5 {[%emt 0:06:29]} 19. Rf3 {[%emt 0:02:42]} Nxc3+ {[%emt 0:03:01]} 20. Kb2 {[%emt 0:00:08]} Na4+ {[%emt 0:01:41]} 21. Kc1 {[%emt 0:00:46]} f6 {[%emt 0:06:59]} 22. exf6+ {[%emt 0:02:35]} Rxf6 {[%emt 0:00:25]} 23. Rhf1 {[%emt 0:00:25]} Rxf3 {[%emt 0:04:28]} 24. Rxf3 {[%emt 0:00:07]} h6 {[%emt 0:04:00]} 25. Rf7+ {[%emt 0:03:29]} Kd6 {[%emt 0:03:40]} 26. Rf4 {[%emt 0:11:06]} hxg5 {[%emt 0:03:02]} 27. Rxa4 {[%emt 0:00:08]} Rxh2 {[%emt 0:01:37]} 28. Rg4 {[%emt 0:01:29]} Rh5 {[%emt 0:48:55]} 1/2-1/2

[Event "Djerba Festival Open-B 2025"]
[Site "Djerba"]
[Date "2025.02.21"]
[Round "7.26"]
[White "Chaouech, Oussama"]
[Black "Farouz, Pierre"]
[Result "1-0"]
[Annotator "NA RC"]
[ECO "A21"]
[WhiteElo "1651"]
[BlackElo "1717"]
[PlyCount "108"]
[EventDate "2025.02.15"]
[EventType "swiss"]
[EventCountry "TUN"]
[SourceTitle "playchess.com"]
[Source "ChessBase"]
[SourceQuality "1"]
[TimeControl "5400+30"]

1. d4 {[%emt 1:31:00]} d6 {[%emt 1:31:00]} 2. c4 {[%emt 0:00:30]} e5 {[%emt 0:00:30]} 3. e3 {[%emt 0:00:30]} Be7 {[%emt 0:00:30]} 4. Nc3 {[%emt 0:00:30]} f5 {[%emt 0:00:30]} 5. g3 {[%emt 0:00:30]} Nf6 {[%emt 0:00:30]} 6. Bg2 {[%emt 0:00:30]} c6 {[%emt 0:00:30]} 7. Nge2 {[%emt 0:00:30]} O-O {[%emt 0:00:30]} 8. b3 {[%emt 0:00:30]} e4 {[%emt 0:00:30]} 9. Bb2 {[%emt 0:00:30]} d5 {[%emt 0:00:30]} 10. Nf4 {[%emt 0:00:30]} Bd6 {[%emt 0:00:30]} 11. h4 {[%emt 0:00:30]} Bxf4 {[%emt 0:00:30]} 12. gxf4 {[%emt 0:00:30]} Be6 {[%emt 0:00:30]} 13. Qe2 {[%emt 0:00:30]} Nbd7 {[%emt 0:00:30]} 14. h5 {[%emt 0:00:30]} h6 {[%emt 0:00:30]} 15. f3 {[%emt 0:00:30]} exf3 {[%emt 0:00:30]} 16. Bxf3 Re8 {[%emt 0:00:30]} 17. Rg1 {[%emt 0:01:00]} Bf7 {[%emt 0:00:30]} 18. Qg2 {[%emt 0:00:30]} Ng4 {[%emt 0:00:30]} 19. Bxg4 {[%emt 0:00:30]} Qh4+ {[%emt 0:00:30]} 20. Kd2 {[%emt 0:00:30]} Qxg4 {[%emt 0:00:30]} 21. Qxg4 {[%emt 0:00:30]} fxg4 {[%emt 0:00:30]} 22. cxd5 {[%emt 0:00:30]} Bxh5 {[%emt 0:00:30]} 23. dxc6 {[%emt 0:00:30]} bxc6 {[%emt 0:00:30]} 24. e4 {[%emt 0:00:30]} Rad8 {[%emt 0:00:30]} 25. Ke3 {[%emt 0:00:30]} Nf8 {[%emt 0:00:30]} 26. f5 {[%emt 0:00:30]} Nh7 {[%emt 0:00:30]} 27. Rad1 {[%emt 0:00:30]} Ng5 {[%emt 0:00:30]} 28. e5 {[%emt 0:00:30]} Nf3 {[%emt 0:00:30]} 29. Rh1 {[%emt 0:00:30]} Bf7 {[%emt 0:00:30]} 30. Ne4 {[%emt 0:00:30]} Bd5 {[%emt 0:00:30]} 31. Kf4 {[%emt 0:00:30]} Ng5 {[%emt 0:00:30]} 32. Nxg5 {[%emt 0:00:30]} hxg5+ {[%emt 0:00:30]} 33. Kxg4 {[%emt 0:00:30]} Bxh1 {[%emt 0:00:30]} 34. Rxh1 {[%emt 0:00:30]} Rd5 {[%emt 0:00:30]} 35. Rc1 {[%emt 0:00:30]} Rc8 {[%emt 0:00:30]} 36. b4 {[%emt 0:00:30]} Rb5 {[%emt 0:00:30]} 37. Rc4 {[%emt 0:00:30]} a5 {[%emt 0:00:30]} 38. a3 {[%emt 0:00:30]} Kh7 {[%emt 0:00:30]} 39. Kxg5 {[%emt 0:00:30]} axb4 {[%emt 0:00:30]} 40. axb4 {[%emt 0:00:30]} Ra8 {[%emt 0:00:30]} 41. f6 {[%emt 0:00:30]} gxf6+ {[%emt 0:00:30]} 42. Kxf6 {[%emt 0:00:30]} Rf8+ {[%emt 0:00:30]} 43. Ke7 {[%emt 0:00:30]} Kg8 {[%emt 0:00:30]} 44. Bc3 {[%emt 0:00:30]} Rb6 {[%emt 0:00:30]} 45. e6 {[%emt 0:00:30]} Ra6 {[%emt 0:00:30]} 46. Rc5 {[%emt 0:00:30]} Ra7+ {[%emt 0:00:30]} 47. Kd6 {[%emt 0:00:30]} Rd8+ {[%emt 0:00:30]} 48. Kxc6 {[%emt 0:00:30]} Rc8+ {[%emt 0:00:30]} 49. Kd6 {[%emt 0:00:30]} Rxc5 {[%emt 0:00:30]} 50. bxc5 {[%emt 0:00:30]} Kf8 {[%emt 0:00:30]} 51. c6 {[%emt 0:00:30]} Ke8 {[%emt 0:00:30]} 52. c7 {[%emt 0:00:30]} Ra6+ {[%emt 0:00:30]} 53. Kc5 {[%emt 0:00:30]} Ra8 {[%emt 0:00:30]} 54. Kb6 {[%emt 0:00:30]} Rc8 {[%emt 0:00:30]} 1-0

[Event "Djerba Festival Open-B 2025"]
[Site "Djerba"]
[Date "2025.02.21"]
[Round "7.27"]
[White "Mileiko, Juris"]
[Black "Jaouadi, Saif Eddine"]
[Result "1-0"]
[Annotator "NA"]
[ECO "B33"]
[WhiteElo "1716"]
[BlackElo "1641"]
[PlyCount "68"]
[EventDate "2025.02.15"]
[EventType "swiss"]
[EventCountry "TUN"]
[SourceTitle "playchess.com"]
[Source "ChessBase"]
[SourceQuality "1"]
[TimeControl "5400+30"]

1. e4 {[%emt 0:00:03]} c5 {[%emt 0:01:04]} 2. Nf3 {[%emt 0:00:34]} Nc6 {[%emt 0:00:34]} 3. d4 {[%emt 0:00:07]} cxd4 {[%emt 0:00:23]} 4. Nxd4 {[%emt 0:00:06]} e5 {[%emt 0:00:36]} 5. Nb5 {[%emt 0:00:20]} d6 {[%emt 0:08:03]} 6. N1c3 {[%emt 0:00:44]} a6 {[%emt 0:00:15]} 7. Na3 {[%emt 0:00:11]} Nf6 {[%emt 0:00:39]} 8. Bg5 {[%emt 0:00:28]} Be7 {[%emt 0:00:12]} 9. Bxf6 {[%emt 0:00:31]} Bxf6 {[%emt 0:00:16]} 10. Nd5 {[%emt 0:00:06]} b5 {[%emt 0:01:02]} 11. c3 {[%emt 0:00:40]} O-O {[%emt 0:00:13]} 12. Nc2 {[%emt 0:00:34]} Bb7 {[%emt 0:01:02]} 13. Nce3 {[%emt 0:14:29]} Bc8 {[%emt 0:00:52]} 14. h4 {[%emt 0:05:29]} g6 {[%emt 0:02:39]} 15. h5 {[%emt 0:04:48]} Bg5 {[%emt 0:00:53]} 16. Qf3 {[%emt 0:14:20]} Be6 {[%emt 0:06:35]} 17. O-O-O {[%emt 0:02:25]} Bxd5 {[%emt 0:00:56]} 18. exd5 {[%emt 0:01:31]} Na5 {[%emt 0:01:18]} 19. Qh3 {[%emt 0:01:37]} Qc8 {[%emt 0:00:34]} 20. g4 {[%emt 0:04:16]} Qc7 {[%emt 0:00:36]} 21. Kb1 {[%emt 0:02:31]} Ra7 {[%emt 0:01:07]} 22. Bd3 {[%emt 0:00:48]} h6 {[%emt 0:04:45]} 23. hxg6 {[%emt 0:01:01]} fxg6 {[%emt 0:00:22]} 24. Bxg6 {[%emt 0:00:40]} Qg7 {[%emt 0:00:44]} 25. Bf5 {[%emt 0:02:40]} Nc4 {[%emt 0:02:01]} 26. Be6+ {[%emt 0:00:53]} Kh7 {[%emt 0:01:00]} 27. Nf5 {[%emt 0:01:35]} Qf6 {[%emt 0:00:51]} 28. Qh5 {[%emt 0:11:30]} Nd2+ {[%emt 0:02:06]} 29. Kc2 {[%emt 0:01:35]} Ne4 {[%emt 0:00:19]} 30. f3 {[%emt 0:01:43]} Nf2 {[%emt 0:00:46]} 31. Nxd6 {[%emt 0:01:18]} Nxd1 {[%emt 0:00:56]} 32. Rxd1 {[%emt 0:01:29]} Qxf3 {[%emt 0:01:41]} 33. Bf5+ {[%emt 0:04:52]} Rxf5 {[%emt 0:00:20]} 34. Nxf5 {[%emt 0:00:30]} Qe2+ {[%emt 1:01:50]} 1-0

[Event "Djerba Festival Open-B 2025"]
[Site "Djerba"]
[Date "2025.02.21"]
[Round "7.28"]
[White "Saidi, Bouziane"]
[Black "Nahom, Perez"]
[Result "1-0"]
[Annotator "NA"]
[ECO "B50"]
[WhiteElo "1710"]
[BlackElo "1641"]
[PlyCount "38"]
[EventDate "2025.02.15"]
[EventType "swiss"]
[EventCountry "TUN"]
[SourceTitle "playchess.com"]
[Source "ChessBase"]
[SourceQuality "1"]
[TimeControl "5400+30"]

1. e4 {[%emt 0:10:37]} c5 {[%emt 0:15:22]} 2. Nf3 {[%emt 0:00:06]} d6 {[%emt 0:00:09]} 3. Bc4 {[%emt 0:00:23]} Nf6 {[%emt 0:00:50]} 4. Nc3 {[%emt 0:00:44]} Bg4 {[%emt 0:00:24]} 5. e5 {[%emt 0:02:56]} Bxf3 {[%emt 0:02:18]} 6. Qxf3 {[%emt 0:01:40]} dxe5 {[%emt 0:00:12]} 7. Qxb7 {[%emt 0:00:42]} Nbd7 {[%emt 0:00:06]} 8. O-O {[%emt 0:04:47]} g5 {[%emt 0:00:40]} 9. Bb5 {[%emt 0:05:29]} e6 {[%emt 0:00:53]} 10. d3 {[%emt 0:01:52]} Rg8 {[%emt 0:00:13]} 11. Re1 {[%emt 0:00:38]} Bd6 {[%emt 0:00:09]} 12. Ne4 {[%emt 0:03:01]} Nxe4 {[%emt 0:00:16]} 13. Rxe4 {[%emt 0:01:59]} Ke7 {[%emt 0:00:14]} 14. Bxd7 {[%emt 0:02:21]} Qxd7 {[%emt 0:00:02]} 15. Bxg5+ {[%emt 0:00:44]} Rxg5 {[%emt 0:00:35]} 16. Qxa8 {[%emt 0:00:19]} f5 {[%emt 0:00:14]} 17. Rh4 {[%emt 0:01:41]} Kf6 {[%emt 0:00:17]} 18. Qh8+ {[%emt 0:01:55]} Kg6 {[%emt 0:00:15]} 19. Qg8+ {[%emt 0:01:16]} Kf6 {[%emt 0:00:43]} 1-0